[Event "Late-Titled-Tuesday-Blitz-January-23-2024"]
[Site "Chess.com"]
[Date "2024.01.23"]
[Round "5"]
[White "azikom"]
[Black "Byniolus"]
[Result "1-0"]
[WhiteElo "2694"]
[BlackElo "2849"]
[TimeControl "180+1"]
[EndTime "14:56:04 PST"]
[Termination "azikom won on time"]

1. c4 {[%clk 0:03:00.3]} 1... c6 {[%clk 0:02:59.8]} 2. e4 {[%clk 0:02:59.3]}
2... d5 {[%clk 0:02:55.8]} 3. exd5 {[%clk 0:03:00.2]} 3... cxd5 {[%clk
0:02:56.7]} 4. cxd5 {[%clk 0:03:00.7]} 4... Nf6 {[%clk 0:02:57.1]} 5. Qa4+
{[%clk 0:03:00.1]} 5... Nbd7 {[%clk 0:02:56.7]} 6. Nc3 {[%clk 0:02:59.2]} 6...
g6 {[%clk 0:02:55.8]} 7. Bc4 {[%clk 0:02:56.4]} 7... Bg7 {[%clk 0:02:54.6]} 8.
d3 {[%clk 0:02:56]} 8... O-O {[%clk 0:02:55]} 9. Nf3 {[%clk 0:02:52.3]} 9... Ne8
{[%clk 0:02:49.6]} 10. O-O {[%clk 0:02:34.8]} 10... Nd6 {[%clk 0:02:45.5]} 11.
Qb3 {[%clk 0:02:33.1]} 11... a6 {[%clk 0:02:31.7]} 12. a4 {[%clk 0:02:31.4]}
12... Rb8 {[%clk 0:01:54.8]} 13. a5 {[%clk 0:02:29.4]} 13... b5 {[%clk
0:01:47.4]} 14. axb6 {[%clk 0:02:29]} 14... Nxb6 {[%clk 0:01:43.6]} 15. Qa2
{[%clk 0:02:27.3]} 15... Ndxc4 {[%clk 0:01:25.4]} 16. dxc4 {[%clk 0:02:26.9]}
16... Qc7 {[%clk 0:01:26.3]} 17. Nd2 {[%clk 0:02:04.7]} 17... Bf5 {[%clk
0:01:07.9]} 18. Re1 {[%clk 0:02:02.9]} 18... Rfc8 {[%clk 0:01:05.4]} 19. h3
{[%clk 0:01:50.9]} 19... h5 {[%clk 0:00:52.7]} 20. Qa5 {[%clk 0:01:41]} 20...
Nxc4 {[%clk 0:00:26]} 21. Qxc7 {[%clk 0:01:40.5]} 21... Rxc7 {[%clk 0:00:25.9]}
22. Nxc4 {[%clk 0:01:40.9]} 22... Rxc4 {[%clk 0:00:26.7]} 23. Rxe7 {[%clk
0:01:37.9]} 23... Bf6 {[%clk 0:00:08]} 24. Re1 {[%clk 0:01:33.1]} 24... Rxc3
{[%clk 0:00:04]} 25. bxc3 {[%clk 0:01:32.9]} 25... Bxc3 {[%clk 0:00:04.9]} 26.
Bf4 {[%clk 0:01:32.4]} 26... Rd8 {[%clk 0:00:04.9]} 27. d6 {[%clk 0:01:32.2]}
27... Bxe1 {[%clk 0:00:04.2]} 28. Rxe1 {[%clk 0:01:31.9]} 28... Bd3 {[%clk
0:00:04.3]} 29. Re7 {[%clk 0:01:28.7]} 29... Bb5 {[%clk 0:00:03.8]} 30. Ra7
{[%clk 0:01:20.1]} 30... Rd7 {[%clk 0:00:03]} 31. Ra8+ {[%clk 0:01:18.4]} 31...
Kg7 {[%clk 0:00:03.2]} 32. h4 {[%clk 0:01:14.7]} 32... f6 {[%clk 0:00:03.6]} 33.
f3 {[%clk 0:01:14.9]} 33... Kf7 {[%clk 0:00:03.3]} 34. Rb8 {[%clk 0:01:01.7]}
34... Ke6 {[%clk 0:00:03.2]} 35. Kf2 {[%clk 0:00:59.4]} 35... Kf5 {[%clk
0:00:03.5]} 36. Bg3 {[%clk 0:00:58.5]} 36... g5 {[%clk 0:00:02.8]} 37. hxg5
{[%clk 0:00:56.7]} 37... fxg5 {[%clk 0:00:03.7]} 38. Rf8+ {[%clk 0:00:57]} 38...
Kg6 {[%clk 0:00:03.5]} 39. Rg8+ {[%clk 0:00:56.8]} 39... Kf6 {[%clk 0:00:03.8]}
40. Rh8 {[%clk 0:00:56.6]} 40... h4 {[%clk 0:00:03.5]} 41. Bh2 {[%clk
0:00:56.6]} 41... a5 {[%clk 0:00:02.4]} 42. Rb8 {[%clk 0:00:55.8]} 42... Bc6
{[%clk 0:00:01.2]} 43. Rb6 {[%clk 0:00:55.3]} 43... Bd5 {[%clk 0:00:01.1]} 44.
Rb5 {[%clk 0:00:55.1]} 44... Be6 {[%clk 0:00:02]} 45. Rxa5 {[%clk 0:00:54.9]}
45... Rb7 {[%clk 0:00:02.9]} 46. Be5+ {[%clk 0:00:54.4]} 46... Kg6 {[%clk
0:00:03]} 47. Rc5 {[%clk 0:00:53.9]} 47... Ra7 {[%clk 0:00:02.9]} 48. Bd4 {[%clk
0:00:50.2]} 48... Ra2+ {[%clk 0:00:02.9]} 49. Kg1 {[%clk 0:00:50.2]} 49... Rd2
{[%clk 0:00:02.6]} 50. Rxg5+ {[%clk 0:00:48.9]} 50... Kxg5 {[%clk 0:00:02.2]}
51. Be3+ {[%clk 0:00:48.8]} 51... Kf5 {[%clk 0:00:02.2]} 52. Bxd2 {[%clk
0:00:49.4]} 52... Ke5 {[%clk 0:00:02.7]} 53. Bb4 {[%clk 0:00:49]} 53... Bd7
{[%clk 0:00:01.4]} 54. Kh2 {[%clk 0:00:42.9]} 54... Be6 {[%clk 0:00:01.4]} 55.
Ba3 {[%clk 0:00:42.7]} 55... Bd7 {[%clk 0:00:01.7]} 56. Kg1 {[%clk 0:00:42.3]}
56... Be6 {[%clk 0:00:02.1]} 57. Kf2 {[%clk 0:00:42.9]} 57... Bd7 {[%clk
0:00:02.6]} 58. Kg1 {[%clk 0:00:32.5]} 58... Be6 {[%clk 0:00:03]} 59. Kh2 {[%clk
0:00:31.5]} 59... Bd7 {[%clk 0:00:03.4]} 60. Bb4 {[%clk 0:00:29.8]} 60... Be6
{[%clk 0:00:03.5]} 61. Be1 {[%clk 0:00:29.3]} 61... h3 {[%clk 0:00:03.9]} 62. g3
{[%clk 0:00:25.6]} 62... Kxd6 {[%clk 0:00:03.6]} 63. g4 {[%clk 0:00:25.8]} 63...
Bd5 {[%clk 0:00:03.4]} 64. f4 {[%clk 0:00:24.6]} 64... Bf3 {[%clk 0:00:01.5]}
65. Kxh3 {[%clk 0:00:24.1]} 65... Ke6 {[%clk 0:00:02.2]} 66. Kg3 {[%clk
0:00:24.3]} 66... Bc6 {[%clk 0:00:01.9]} 67. Bc3 {[%clk 0:00:21.5]} 67... Kf7
{[%clk 0:00:01.8]} 68. f5 {[%clk 0:00:21.4]} 68... Be8 {[%clk 0:00:01.4]} 69.
Kf4 {[%clk 0:00:21.6]} 69... Kg8 {[%clk 0:00:01.3]} 70. g5 {[%clk 0:00:21]}
70... Bb5 {[%clk 0:00:01.4]} 71. g6 {[%clk 0:00:20.6]} 1-0

[Event "Late-Titled-Tuesday-Blitz-January-23-2024"]
[Site "Chess.com"]
[Date "2024.01.23"]
[Round "5"]
[White "jcmesafischer"]
[Black "subham777"]
[Result "1-0"]
[WhiteElo "2369"]
[BlackElo "2533"]
[TimeControl "180+1"]
[EndTime "14:56:05 PST"]
[Termination "jcmesafischer won by resignation"]

1. e4 {[%clk 0:02:54.7]} 1... e6 {[%clk 0:02:58.5]} 2. Qe2 {[%clk 0:02:48.7]}
2... c5 {[%clk 0:02:58]} 3. Nf3 {[%clk 0:02:47.4]} 3... Nc6 {[%clk 0:02:57.7]}
4. g3 {[%clk 0:02:45.5]} 4... g6 {[%clk 0:02:57.6]} 5. Bg2 {[%clk 0:02:45.4]}
5... Bg7 {[%clk 0:02:58]} 6. O-O {[%clk 0:02:45.4]} 6... Nge7 {[%clk 0:02:58.6]}
7. c3 {[%clk 0:02:44.7]} 7... O-O {[%clk 0:02:58.7]} 8. Re1 {[%clk 0:02:40.6]}
8... d6 {[%clk 0:02:58.5]} 9. Na3 {[%clk 0:02:39.7]} 9... a6 {[%clk 0:02:57.8]}
10. Nc2 {[%clk 0:02:39.4]} 10... e5 {[%clk 0:02:57.9]} 11. d4 {[%clk 0:02:27.5]}
11... cxd4 {[%clk 0:02:57.2]} 12. cxd4 {[%clk 0:02:27.7]} 12... Nxd4 {[%clk
0:02:49.9]} 13. Ncxd4 {[%clk 0:02:26.4]} 13... exd4 {[%clk 0:02:50.5]} 14. Bf4
{[%clk 0:02:23.2]} 14... Be6 {[%clk 0:02:44.5]} 15. Qd2 {[%clk 0:02:18.8]} 15...
Qb6 {[%clk 0:02:41.1]} 16. b3 {[%clk 0:02:09.9]} 16... Rac8 {[%clk 0:02:34.1]}
17. Rad1 {[%clk 0:02:07.3]} 17... Nc6 {[%clk 0:02:18]} 18. Bh6 {[%clk
0:02:05.9]} 18... Bg4 {[%clk 0:02:07.2]} 19. Bxg7 {[%clk 0:02:00.9]} 19... Kxg7
{[%clk 0:02:03.6]} 20. h3 {[%clk 0:01:43.3]} 20... Bxf3 {[%clk 0:02:03.2]} 21.
Bxf3 {[%clk 0:01:44.2]} 21... Ne5 {[%clk 0:02:03.5]} 22. Bg2 {[%clk 0:01:40.4]}
22... d3 {[%clk 0:02:00.8]} 23. Rc1 {[%clk 0:01:31.4]} 23... Qd4 {[%clk
0:01:52.3]} 24. Kh2 {[%clk 0:01:27.9]} 24... Rc5 {[%clk 0:01:32]} 25. f4 {[%clk
0:01:17.1]} 25... Nc6 {[%clk 0:01:12]} 26. a3 {[%clk 0:00:25.3]} 26... Rc8
{[%clk 0:00:58.8]} 27. b4 {[%clk 0:00:17.2]} 27... Rxc1 {[%clk 0:00:40.7]} 28.
Rxc1 {[%clk 0:00:16]} 28... Ne7 {[%clk 0:00:39.1]} 29. Rxc8 {[%clk 0:00:08]}
29... Nxc8 {[%clk 0:00:38.1]} 30. Bf1 {[%clk 0:00:08.2]} 30... Nb6 {[%clk
0:00:20.5]} 31. Qxd3 {[%clk 0:00:07.7]} 31... Qb2+ {[%clk 0:00:19.9]} 32. Kg1
{[%clk 0:00:05.7]} 32... Qf6 {[%clk 0:00:13.8]} 33. h4 {[%clk 0:00:05.5]} 33...
h5 {[%clk 0:00:12.2]} 34. Qe3 {[%clk 0:00:05.5]} 34... Nc4 {[%clk 0:00:11.6]}
35. Bxc4 {[%clk 0:00:04.9]} 35... Qa1+ {[%clk 0:00:09.6]} 36. Bf1 {[%clk
0:00:05.1]} 36... f6 {[%clk 0:00:08.7]} 37. Qd3 {[%clk 0:00:04.8]} 37... Qe1
{[%clk 0:00:05.6]} 38. Kg2 {[%clk 0:00:03.1]} 38... Qc1 {[%clk 0:00:05.1]} 39.
Be2 {[%clk 0:00:03.1]} 39... Qb2 {[%clk 0:00:04.8]} 40. Kf2 {[%clk 0:00:02.3]}
40... Qc1 {[%clk 0:00:03.9]} 41. Qe3 {[%clk 0:00:02.8]} 41... Qh1 {[%clk
0:00:03.7]} 42. Bf3 {[%clk 0:00:02.8]} 42... Qa1 {[%clk 0:00:03.4]} 43. Bg2
{[%clk 0:00:03.7]} 43... Qb2+ {[%clk 0:00:03.5]} 44. Kf3 {[%clk 0:00:04.4]}
44... Qb1 {[%clk 0:00:03.3]} 45. Bf1 {[%clk 0:00:04.8]} 45... Qxf1+ {[%clk
0:00:02.8]} 46. Qf2 {[%clk 0:00:05.5]} 46... Qd3+ {[%clk 0:00:03]} 47. Qe3
{[%clk 0:00:05.6]} 47... Qd1+ {[%clk 0:00:03.3]} 48. Kf2 {[%clk 0:00:05.6]}
48... Qc2+ {[%clk 0:00:03.2]} 49. Kf3 {[%clk 0:00:06]} 49... Qc6 {[%clk
0:00:03.8]} 50. Qd4 {[%clk 0:00:06.1]} 50... Kf7 {[%clk 0:00:03.3]} 51. Ke3
{[%clk 0:00:06.5]} 51... Qc1+ {[%clk 0:00:02.9]} 52. Ke2 {[%clk 0:00:04.9]}
52... Qc2+ {[%clk 0:00:02.4]} 53. Ke3 {[%clk 0:00:03.6]} 53... Qb3+ {[%clk
0:00:02.8]} 54. Qd3 {[%clk 0:00:04.5]} 54... Qe6 {[%clk 0:00:02.9]} 55. Qd5
{[%clk 0:00:04.5]} 55... Qxd5 {[%clk 0:00:02]} 56. exd5 {[%clk 0:00:05.4]} 56...
Ke7 {[%clk 0:00:02.8]} 57. Kd4 {[%clk 0:00:05.8]} 57... f5 {[%clk 0:00:03.1]}
58. Kc4 {[%clk 0:00:05.7]} 58... Kd7 {[%clk 0:00:03.4]} 59. b5 {[%clk 0:00:06]}
59... Kc7 {[%clk 0:00:03.3]} 60. bxa6 {[%clk 0:00:05.1]} 60... bxa6 {[%clk
0:00:03.9]} 61. Kb4 {[%clk 0:00:05.3]} 61... Kb6 {[%clk 0:00:04]} 62. a4 {[%clk
0:00:05.2]} 62... a5+ {[%clk 0:00:03.9]} 63. Kc4 {[%clk 0:00:05.8]} 63... Ka6
{[%clk 0:00:04.5]} 64. Kd4 {[%clk 0:00:06]} 64... Kb6 {[%clk 0:00:05.1]} 65. Kc4
{[%clk 0:00:06.7]} 65... Kb7 {[%clk 0:00:05.3]} 66. Kb5 {[%clk 0:00:07]} 66...
Ka7 {[%clk 0:00:03.5]} 67. Kxa5 {[%clk 0:00:07.6]} 67... Kb7 {[%clk 0:00:04.1]}
68. Kb5 {[%clk 0:00:08.4]} 68... Ka7 {[%clk 0:00:04.6]} 69. a5 {[%clk
0:00:09.1]} 69... Kb7 {[%clk 0:00:04.5]} 70. a6+ {[%clk 0:00:09.7]} 70... Ka7
{[%clk 0:00:05.2]} 71. Ka5 {[%clk 0:00:10.4]} 71... Ka8 {[%clk 0:00:05.3]} 72.
Kb6 {[%clk 0:00:11.3]} 72... Kb8 {[%clk 0:00:03.6]} 73. Kc6 {[%clk 0:00:12]}
73... Ka7 {[%clk 0:00:04]} 74. Kxd6 {[%clk 0:00:12.9]} 74... Kxa6 {[%clk
0:00:04.6]} 75. Ke7 {[%clk 0:00:13.8]} 75... Kb6 {[%clk 0:00:04.9]} 76. d6
{[%clk 0:00:14.5]} 76... Kc5 {[%clk 0:00:05.8]} 77. d7 {[%clk 0:00:15.2]} 77...
Kd4 {[%clk 0:00:06.7]} 78. d8=Q+ {[%clk 0:00:15.8]} 78... Ke3 {[%clk 0:00:07.6]}
79. Qd6 {[%clk 0:00:15.4]} 79... Kf3 {[%clk 0:00:08.5]} 80. Qxg6 {[%clk
0:00:16]} 80... Kg2 {[%clk 0:00:08.3]} 81. Qxh5 {[%clk 0:00:16]} 81... Kh3
{[%clk 0:00:09.2]} 82. Qxf5+ {[%clk 0:00:16.7]} 82... Kxg3 {[%clk 0:00:09.7]}
83. Qg5+ {[%clk 0:00:17.3]} 83... Kh3 {[%clk 0:00:10]} 84. h5 {[%clk 0:00:18.2]}
1-0

[Event "Late-Titled-Tuesday-Blitz-January-23-2024"]
[Site "Chess.com"]
[Date "2024.01.23"]
[Round "5"]
[White "Atousa"]
[Black "Andrej2004"]
[Result "0-1"]
[WhiteElo "2469"]
[BlackElo "2618"]
[TimeControl "180+1"]
[EndTime "14:56:06 PST"]
[Termination "Andrej2004 won by checkmate"]

1. e4 {[%clk 0:03:00.9]} 1... e5 {[%clk 0:02:50.7]} 2. Nf3 {[%clk 0:03:00.7]}
2... Nc6 {[%clk 0:02:49.2]} 3. Bb5 {[%clk 0:03:00.5]} 3... a6 {[%clk 0:02:46.5]}
4. Ba4 {[%clk 0:03:00.5]} 4... Nge7 {[%clk 0:02:46.1]} 5. c3 {[%clk 0:02:55]}
5... g6 {[%clk 0:02:46.2]} 6. d4 {[%clk 0:02:53.9]} 6... exd4 {[%clk 0:02:47.1]}
7. cxd4 {[%clk 0:02:54.2]} 7... b5 {[%clk 0:02:47.7]} 8. Bb3 {[%clk 0:02:44.4]}
8... Bg7 {[%clk 0:02:47.2]} 9. O-O {[%clk 0:02:43.5]} 9... O-O {[%clk
0:02:46.3]} 10. d5 {[%clk 0:02:43.5]} 10... Na5 {[%clk 0:02:45.9]} 11. Bd2
{[%clk 0:02:43.3]} 11... Nxb3 {[%clk 0:02:44.8]} 12. Qxb3 {[%clk 0:02:42.6]}
12... c5 {[%clk 0:02:38.8]} 13. Bc3 {[%clk 0:02:38.3]} 13... d6 {[%clk
0:02:32.5]} 14. Bxg7 {[%clk 0:02:31]} 14... Kxg7 {[%clk 0:02:33.4]} 15. Nc3
{[%clk 0:02:16.4]} 15... Bg4 {[%clk 0:02:28.5]} 16. Qd1 {[%clk 0:01:52.3]} 16...
f5 {[%clk 0:02:25.2]} 17. h3 {[%clk 0:01:38.9]} 17... fxe4 {[%clk 0:02:23.9]}
18. hxg4 {[%clk 0:01:38.8]} 18... exf3 {[%clk 0:02:23.9]} 19. gxf3 {[%clk
0:01:39.7]} 19... Nf5 {[%clk 0:02:19.3]} 20. Re1 {[%clk 0:01:02.4]} 20... Nh4
{[%clk 0:02:14.7]} 21. Re3 {[%clk 0:01:01.4]} 21... Qf6 {[%clk 0:02:12.8]} 22.
Ne4 {[%clk 0:01:00.5]} 22... Nxf3+ {[%clk 0:02:09.9]} 23. Kg2 {[%clk 0:00:46.2]}
23... Nh4+ {[%clk 0:01:57.6]} 24. Kg3 {[%clk 0:00:46.5]} 24... Qe7 {[%clk
0:01:29.6]} 25. Qh1 {[%clk 0:00:46.1]} 25... g5 {[%clk 0:01:21.9]} 26. Nxg5
{[%clk 0:00:45.9]} 26... Nf5+ {[%clk 0:01:17.3]} 27. gxf5 {[%clk 0:00:44.8]}
27... Qxg5+ {[%clk 0:01:17.2]} 28. Kh2 {[%clk 0:00:42.8]} 28... Qf4+ {[%clk
0:01:05.1]} 29. Rg3+ {[%clk 0:00:37.5]} 29... Kh8 {[%clk 0:01:03.5]} 30. Qf3
{[%clk 0:00:35.6]} 30... Rxf5 {[%clk 0:00:59.8]} 31. Qxf4 {[%clk 0:00:33.3]}
31... Rxf4 {[%clk 0:01:00.7]} 32. Kg2 {[%clk 0:00:32.1]} 32... Rd4 {[%clk
0:00:58]} 33. Re1 {[%clk 0:00:28.8]} 33... Rxd5 {[%clk 0:00:55.3]} 34. Re7
{[%clk 0:00:27.1]} 34... Rg8 {[%clk 0:00:55.1]} 35. Ra7 {[%clk 0:00:22.9]} 35...
Rxg3+ {[%clk 0:00:50.9]} 36. Kxg3 {[%clk 0:00:22.6]} 36... Rd2 {[%clk
0:00:41.8]} 37. Rxa6 {[%clk 0:00:15.3]} 37... Rxb2 {[%clk 0:00:41.1]} 38. Rxd6
{[%clk 0:00:12.6]} 38... Rxa2 {[%clk 0:00:41.3]} 39. Rd5 {[%clk 0:00:11]} 39...
Rc2 {[%clk 0:00:40.3]} 40. f4 {[%clk 0:00:10.8]} 40... b4 {[%clk 0:00:40.5]} 41.
f5 {[%clk 0:00:10.1]} 41... Kg7 {[%clk 0:00:38.6]} 42. Kf4 {[%clk 0:00:09]}
42... b3 {[%clk 0:00:38.4]} 43. Rd7+ {[%clk 0:00:09.1]} 43... Kf6 {[%clk
0:00:37.7]} 44. Rd6+ {[%clk 0:00:09.2]} 44... Ke7 {[%clk 0:00:37.9]} 45. Rb6
{[%clk 0:00:09.3]} 45... c4 {[%clk 0:00:37.6]} 46. Ke5 {[%clk 0:00:09]} 46...
Re2+ {[%clk 0:00:17.3]} 47. Kd4 {[%clk 0:00:09.3]} 47... Rc2 {[%clk 0:00:13.9]}
48. Ke5 {[%clk 0:00:09.6]} 48... Kd7 {[%clk 0:00:12.2]} 49. f6 {[%clk
0:00:09.6]} 49... b2 {[%clk 0:00:09]} 50. Rb7+ {[%clk 0:00:08.2]} 50... Kc6
{[%clk 0:00:09]} 51. Rb4 {[%clk 0:00:06.5]} 51... Kc5 {[%clk 0:00:08.8]} 52. f7
{[%clk 0:00:05.4]} 52... Rf2 {[%clk 0:00:08.3]} 53. Rxb2 {[%clk 0:00:05.6]}
53... Rxf7 {[%clk 0:00:08.2]} 54. Rb8 {[%clk 0:00:04.6]} 54... Re7+ {[%clk
0:00:08.5]} 55. Kf4 {[%clk 0:00:04.4]} 55... Re1 {[%clk 0:00:09.4]} 56. Rc8+
{[%clk 0:00:04.2]} 56... Kd4 {[%clk 0:00:09.2]} 57. Rd8+ {[%clk 0:00:03.7]}
57... Kc3 {[%clk 0:00:09.7]} 58. Kf3 {[%clk 0:00:04.3]} 58... Kb2 {[%clk
0:00:09.1]} 59. Kf2 {[%clk 0:00:05]} 59... Re7 {[%clk 0:00:08.1]} 60. Rb8+
{[%clk 0:00:05.1]} 60... Kc2 {[%clk 0:00:07.3]} 61. Rc8 {[%clk 0:00:05.3]} 61...
c3 {[%clk 0:00:07.9]} 62. Rc6 {[%clk 0:00:05.3]} 62... Kd2 {[%clk 0:00:08]} 63.
Rd6+ {[%clk 0:00:05.8]} 63... Kc1 {[%clk 0:00:08.2]} 64. Rc6 {[%clk 0:00:06.5]}
64... c2 {[%clk 0:00:08.8]} 65. Rc5 {[%clk 0:00:06.7]} 65... Kd1 {[%clk
0:00:03.9]} 66. Rd5+ {[%clk 0:00:06.7]} 66... Kc1 {[%clk 0:00:04.4]} 67. Rc5
{[%clk 0:00:07.4]} 67... Re4 {[%clk 0:00:04.4]} 68. Rc8 {[%clk 0:00:07.2]} 68...
Kd2 {[%clk 0:00:04.3]} 69. Rd8+ {[%clk 0:00:07]} 69... Kc3 {[%clk 0:00:04.6]}
70. Rc8+ {[%clk 0:00:07.4]} 70... Rc4 {[%clk 0:00:05]} 71. Rxc4+ {[%clk
0:00:07.6]} 71... Kxc4 {[%clk 0:00:05.9]} 72. Kf3 {[%clk 0:00:08.2]} 72... c1=Q
{[%clk 0:00:06.3]} 73. Kg4 {[%clk 0:00:09.1]} 73... Qh6 {[%clk 0:00:06.7]} 74.
Kg3 {[%clk 0:00:09.1]} 74... Qg6+ {[%clk 0:00:07.6]} 75. Kh4 {[%clk 0:00:09.1]}
75... Kd4 {[%clk 0:00:07.6]} 76. Kh3 {[%clk 0:00:10]} 76... Ke3 {[%clk
0:00:08.2]} 77. Kh4 {[%clk 0:00:10.9]} 77... Kf3 {[%clk 0:00:08.5]} 78. Kh3
{[%clk 0:00:11.8]} 78... Qh6# {[%clk 0:00:08.8]} 0-1

[Event "Late-Titled-Tuesday-Blitz-January-23-2024"]
[Site "Chess.com"]
[Date "2024.01.23"]
[Round "5"]
[White "1mbl4"]
[Black "GiorgianBarbosa"]
[Result "0-1"]
[WhiteElo "2574"]
[BlackElo "2453"]
[TimeControl "180+1"]
[EndTime "14:56:08 PST"]
[Termination "GiorgianBarbosa won by checkmate"]

1. e4 {[%clk 0:03:00.9]} 1... c5 {[%clk 0:02:59.8]} 2. d4 {[%clk 0:03:00.1]}
2... g6 {[%clk 0:03:00.7]} 3. dxc5 {[%clk 0:02:55.1]} 3... Na6 {[%clk
0:03:00.9]} 4. Qd4 {[%clk 0:02:41.4]} 4... Nf6 {[%clk 0:02:59.7]} 5. e5 {[%clk
0:02:39.9]} 5... Ng8 {[%clk 0:02:52.7]} 6. e6 {[%clk 0:02:35.8]} 6... Nf6 {[%clk
0:02:51.9]} 7. exf7+ {[%clk 0:02:20.7]} 7... Kxf7 {[%clk 0:02:52.8]} 8. Bc4+
{[%clk 0:02:20]} 8... e6 {[%clk 0:02:48.1]} 9. Nf3 {[%clk 0:02:03.4]} 9... Bg7
{[%clk 0:02:47.6]} 10. Ng5+ {[%clk 0:02:00.7]} 10... Ke8 {[%clk 0:02:44.5]} 11.
O-O {[%clk 0:01:55.2]} 11... Qc7 {[%clk 0:02:31.9]} 12. Ne4 {[%clk 0:01:44.8]}
12... Nh5 {[%clk 0:02:18.7]} 13. Qe3 {[%clk 0:01:33.9]} 13... b6 {[%clk
0:02:09.8]} 14. Nd6+ {[%clk 0:01:28.5]} 14... Ke7 {[%clk 0:02:00]} 15. Qf3
{[%clk 0:01:16.2]} 15... Nxc5 {[%clk 0:01:46.7]} 16. Bg5+ {[%clk 0:01:12]} 16...
Nf6 {[%clk 0:01:30.2]} 17. Qxa8 {[%clk 0:01:04.7]} 17... Bb7 {[%clk 0:01:01.9]}
18. Qxh8 {[%clk 0:00:36.8]} 18... Bxh8 {[%clk 0:01:02.8]} 19. Nxb7 {[%clk
0:00:36.8]} 19... Qxb7 {[%clk 0:00:59.4]} 20. Nc3 {[%clk 0:00:35.9]} 20... d5
{[%clk 0:00:49.6]} 21. Be2 {[%clk 0:00:34.6]} 21... Kf7 {[%clk 0:00:49.4]} 22.
Rfe1 {[%clk 0:00:34]} 22... Nfe4 {[%clk 0:00:48.7]} 23. Nxe4 {[%clk 0:00:31.6]}
23... Nxe4 {[%clk 0:00:49.6]} 24. Be3 {[%clk 0:00:31]} 24... Bxb2 {[%clk
0:00:45.7]} 25. Rab1 {[%clk 0:00:30.8]} 25... Bc3 {[%clk 0:00:45.6]} 26. Rf1
{[%clk 0:00:29.8]} 26... Nd2 {[%clk 0:00:41.4]} 27. Bxd2 {[%clk 0:00:29.5]}
27... Bxd2 {[%clk 0:00:42.3]} 28. Rfd1 {[%clk 0:00:28.8]} 28... Bf4 {[%clk
0:00:38.8]} 29. c4 {[%clk 0:00:28.7]} 29... Bd6 {[%clk 0:00:32.7]} 30. cxd5
{[%clk 0:00:28.4]} 30... exd5 {[%clk 0:00:33.6]} 31. Bf3 {[%clk 0:00:28.8]}
31... Kg7 {[%clk 0:00:27.5]} 32. Rxd5 {[%clk 0:00:28.7]} 32... Qb8 {[%clk
0:00:23.9]} 33. Rbd1 {[%clk 0:00:27.9]} 33... Bxh2+ {[%clk 0:00:23.9]} 34. Kh1
{[%clk 0:00:27.6]} 34... h6 {[%clk 0:00:21.7]} 35. Rd7+ {[%clk 0:00:23.4]} 35...
Kf6 {[%clk 0:00:21.8]} 36. g3 {[%clk 0:00:18]} 36... Bxg3 {[%clk 0:00:21.1]} 37.
fxg3 {[%clk 0:00:18]} 37... Qxg3 {[%clk 0:00:22]} 38. Bg2 {[%clk 0:00:18.3]}
38... Qh4+ {[%clk 0:00:20.1]} 39. Kg1 {[%clk 0:00:18.3]} 39... Qa4 {[%clk
0:00:18.5]} 40. R1d6+ {[%clk 0:00:17.8]} 40... Ke5 {[%clk 0:00:18.6]} 41. Rd5+
{[%clk 0:00:17.9]} 41... Kf6 {[%clk 0:00:18.7]} 42. R7d6+ {[%clk 0:00:18.1]}
42... Ke7 {[%clk 0:00:19.1]} 43. Rd2 {[%clk 0:00:17.8]} 43... h5 {[%clk
0:00:16.3]} 44. R6d4 {[%clk 0:00:17.6]} 44... Qa5 {[%clk 0:00:14.7]} 45. Re4+
{[%clk 0:00:17.8]} 45... Kf6 {[%clk 0:00:14.4]} 46. Rf2+ {[%clk 0:00:18.2]}
46... Kg5 {[%clk 0:00:14.3]} 47. Rfe2 {[%clk 0:00:18.6]} 47... Kh6 {[%clk
0:00:14]} 48. Re6 {[%clk 0:00:18]} 48... Qc5+ {[%clk 0:00:14.1]} 49. Kh1 {[%clk
0:00:18.2]} 49... Qc1+ {[%clk 0:00:13.8]} 50. Kh2 {[%clk 0:00:18.1]} 50... Qf4+
{[%clk 0:00:14.2]} 51. Kg1 {[%clk 0:00:18.5]} 51... Qd4+ {[%clk 0:00:14.7]} 52.
R2e3 {[%clk 0:00:18.7]} 52... Qa1+ {[%clk 0:00:13.3]} 53. Kh2 {[%clk 0:00:18.6]}
53... Qxa2 {[%clk 0:00:11.8]} 54. Rg3 {[%clk 0:00:18.4]} 54... Qxe6 {[%clk
0:00:10.1]} 55. Bh3 {[%clk 0:00:18.5]} 55... Qd6 {[%clk 0:00:10.2]} 56. Kg2
{[%clk 0:00:18.1]} 56... a5 {[%clk 0:00:10.2]} 57. Rf3 {[%clk 0:00:17.9]} 57...
a4 {[%clk 0:00:10.2]} 58. Kg1 {[%clk 0:00:17.4]} 58... b5 {[%clk 0:00:09.8]} 59.
Bf1 {[%clk 0:00:17.9]} 59... b4 {[%clk 0:00:09.5]} 60. Rd3 {[%clk 0:00:18.4]}
60... Qc5+ {[%clk 0:00:09.3]} 61. Kg2 {[%clk 0:00:18.5]} 61... b3 {[%clk
0:00:09.8]} 62. Rg3 {[%clk 0:00:18.4]} 62... b2 {[%clk 0:00:09.3]} 63. Bd3
{[%clk 0:00:18.8]} 63... Qd5+ {[%clk 0:00:08.1]} 64. Kf2 {[%clk 0:00:18.5]}
64... Qxd3 {[%clk 0:00:08.4]} 65. Rxd3 {[%clk 0:00:18.4]} 65... b1=Q {[%clk
0:00:08.8]} 66. Rd2 {[%clk 0:00:19]} 66... a3 {[%clk 0:00:07.8]} 67. Ke2 {[%clk
0:00:18.9]} 67... a2 {[%clk 0:00:08.2]} 68. Ke3 {[%clk 0:00:19.4]} 68... a1=Q
{[%clk 0:00:08.4]} 69. Re2 {[%clk 0:00:20.3]} 69... Qe5+ {[%clk 0:00:08.4]} 70.
Kf2 {[%clk 0:00:21.2]} 70... Qbf5+ {[%clk 0:00:08.7]} 71. Ke1 {[%clk 0:00:21.1]}
71... Qa1+ {[%clk 0:00:08.9]} 72. Kd2 {[%clk 0:00:21.1]} 72... Qb2+ {[%clk
0:00:09]} 73. Kd1 {[%clk 0:00:20.4]} 73... Qfb1# {[%clk 0:00:08.6]} 0-1